[Event "Titled Tuesday Blitz April 12 Early 2022"]
[White "Matlakov, Maxim"]
[Black "Ohanyan, Emin"]
[WhiteFideId "4168003"]
[BlackFideId "13312022"]
[WhiteElo "2669"]
[BlackElo "1927"]
[Result "1-0"]
[Round "03"]
[TimeControl "180+1"]
[Date "2022.04.12"]
[WhiteClock "0:00:21"]
[BlackClock "0:00:01"]

1. e4 {[%clk 0:03:00]}  e5 {[%clk 0:02:55]} 2. Nf3 {[%clk 0:03:00]}  Nc6 {[%clk 0:02:55]} 3. Bc4 {[%clk 0:03:00]}  Nf6 {[%clk 0:02:55]} 4. d4 {[%clk 0:03:00]}  exd4 {[%clk 0:02:56]} 5. e5 {[%clk 0:02:59]}  d5 {[%clk 0:02:56]} 6. Bb5 {[%clk 0:02:59]}  Ne4 {[%clk 0:02:57]} 7. Nxd4 {[%clk 0:02:59]}  Bc5 {[%clk 0:02:57]} 8. Be3 {[%clk 0:02:52]}  O-O {[%clk 0:02:57]} 9. Nxc6 {[%clk 0:02:46]}  bxc6 {[%clk 0:02:58]} 10. Bxc5 {[%clk 0:02:46]}  Nxc5 {[%clk 0:02:59]} 11. Bxc6 {[%clk 0:02:46]}  Rb8 {[%clk 0:02:59]} 12. Qxd5 {[%clk 0:02:46]}  Qe7 {[%clk 0:03:00]} 13. O-O {[%clk 0:02:45]}  Rd8 {[%clk 0:03:00]} 14. Qf3 {[%clk 0:02:25]}  Rxb2 {[%clk 0:02:59]} 15. Nc3 {[%clk 0:02:25]}  Ne6 {[%clk 0:02:55]} 16. Nd5 {[%clk 0:01:40]}  Qc5 {[%clk 0:02:54]} 17. Rad1 {[%clk 0:01:37]}  Kf8 {[%clk 0:02:53]} 18. Ne3 {[%clk 0:01:00]}  Rxd1 {[%clk 0:02:34]} 19. Nxd1 {[%clk 0:00:55]}  Rxc2 {[%clk 0:02:27]} 20. Be4 {[%clk 0:00:54]}  Rxa2 {[%clk 0:02:23]} 21. Bxh7 {[%clk 0:00:45]}  Ba6 {[%clk 0:01:22]} 22. Bd3 {[%clk 0:00:44]}  Bxd3 {[%clk 0:00:59]} 23. Qxd3 {[%clk 0:00:45]}  Qxe5 {[%clk 0:00:57]} 24. Ne3 {[%clk 0:00:45]}  Qd6 {[%clk 0:00:41]} 25. Qb3 {[%clk 0:00:44]}  Qd2 {[%clk 0:00:32]} 26. h4 {[%clk 0:00:37]}  g6 {[%clk 0:00:30]} 27. h5 {[%clk 0:00:37]}  Rb2 {[%clk 0:00:24]} 28. Qa3+ {[%clk 0:00:36]}  Qb4 {[%clk 0:00:22]} 29. Qxa7 {[%clk 0:00:36]}  gxh5 {[%clk 0:00:22]} 30. Nf5 {[%clk 0:00:35]}  Qb7 {[%clk 0:00:18]} 31. Qa3+ {[%clk 0:00:34]}  Qb4 {[%clk 0:00:18]} 32. Qg3 {[%clk 0:00:31]}  Qg4 {[%clk 0:00:12]} 33. Qc3 {[%clk 0:00:31]}  Qxf5 {[%clk 0:00:02]} 34. Qh8+ {[%clk 0:00:30]}  Ke7 {[%clk 0:00:01]} 35. Qxb2 {[%clk 0:00:31]}  Nf4 {[%clk 0:00:01]} 36. Re1+ {[%clk 0:00:30]}  Kd7 {[%clk 0:00:01]} 37. Qd4+ {[%clk 0:00:30]}  Kc8 {[%clk 0:00:01]} 38. Re8+ {[%clk 0:00:30]}  Kb7 {[%clk 0:00:02]} 39. Re5 {[%clk 0:00:24]}  Qb1+ {[%clk 0:00:01]} 40. Kh2 {[%clk 0:00:24]}  Ne6 {[%clk 0:00:02]} 41. Qd5+ {[%clk 0:00:22]}  Kc8 {[%clk 0:00:02]} 42. Qa8+ {[%clk 0:00:22]}  Kd7 {[%clk 0:00:03]} 43. Rd5+ {[%clk 0:00:21]}  Ke7 {[%clk 0:00:03]} 44. Rxh5 {[%clk 0:00:21]}  Nf4 {[%clk 0:00:01]} 45. Qa3+ {[%clk 0:00:21]}  Ke6 {[%clk 0:00:01]} 46. Qe3+ {[%clk 0:00:21]} 1-0


[Site "https://www.chess.com"]

[Event "Titled Tuesday Blitz April 12 Early 2022"]
[White "Mekhitarian, Krikor Sevag"]
[Black "Coto Mederos, Michel"]
[WhiteFideId "2107660"]
[BlackFideId "3508528"]
[WhiteElo "2598"]
[BlackElo "2427"]
[Result "0-1"]
[Round "03"]
[TimeControl "180+1"]
[Date "2022.04.13"]
[WhiteClock "0:00:05"]
[BlackClock "0:00:24"]

1. Nf3 {[%clk 0:03:00]}  d5 {[%clk 0:02:59]} 2. c4 {[%clk 0:03:00]}  e6 {[%clk 0:02:57]} 3. e3 {[%clk 0:02:56]}  Nf6 {[%clk 0:02:56]} 4. Nc3 {[%clk 0:02:54]}  c5 {[%clk 0:02:55]} 5. cxd5 {[%clk 0:02:54]}  exd5 {[%clk 0:02:55]} 6. d4 {[%clk 0:02:49]}  Nc6 {[%clk 0:02:55]} 7. Bb5 {[%clk 0:02:45]}  cxd4 {[%clk 0:02:33]} 8. Nxd4 {[%clk 0:02:42]}  Bd7 {[%clk 0:02:33]} 9. O-O {[%clk 0:02:42]}  Bc5 {[%clk 0:02:31]} 10. Nb3 {[%clk 0:02:40]}  Bd6 {[%clk 0:01:56]} 11. Nxd5 {[%clk 0:02:35]}  O-O {[%clk 0:01:55]} 12. Nc3 {[%clk 0:02:27]}  Be6 {[%clk 0:01:39]} 13. Be2 {[%clk 0:02:17]}  Qc7 {[%clk 0:01:38]} 14. h3 {[%clk 0:01:44]}  Rad8 {[%clk 0:01:35]} 15. Bd2 {[%clk 0:01:40]}  Qc8 {[%clk 0:01:34]} 16. f4 {[%clk 0:01:27]}  Rfe8 {[%clk 0:01:28]} 17. Rc1 {[%clk 0:01:22]}  Bc7 {[%clk 0:01:21]} 18. Qe1 {[%clk 0:01:18]}  Bxb3 {[%clk 0:01:18]} 19. axb3 {[%clk 0:01:18]}  Bb6 {[%clk 0:01:19]} 20. Nd1 {[%clk 0:00:49]}  Nd5 {[%clk 0:01:02]} 21. Bc4 {[%clk 0:00:43]}  Nxe3 {[%clk 0:00:51]} 22. Bxe3 {[%clk 0:00:38]}  Rxd1 {[%clk 0:00:49]} 23. Qxd1 {[%clk 0:00:28]}  Bxe3+ {[%clk 0:00:49]} 24. Kh2 {[%clk 0:00:29]}  Bxc1 {[%clk 0:00:50]} 25. Qxc1 {[%clk 0:00:29]}  Qf5 {[%clk 0:00:43]} 26. Qd2 {[%clk 0:00:27]}  h5 {[%clk 0:00:41]} 27. Qd5 {[%clk 0:00:18]}  Qxd5 {[%clk 0:00:37]} 28. Bxd5 {[%clk 0:00:19]}  Re2 {[%clk 0:00:37]} 29. Bxc6 {[%clk 0:00:14]}  bxc6 {[%clk 0:00:38]} 30. Rc1 {[%clk 0:00:07]}  Rxb2 {[%clk 0:00:38]} 31. Rxc6 {[%clk 0:00:08]}  Rxb3 {[%clk 0:00:38]} 32. Rc8+ {[%clk 0:00:08]}  Kh7 {[%clk 0:00:33]} 33. Rc7 {[%clk 0:00:09]}  a5 {[%clk 0:00:24]} 34. Rxf7 {[%clk 0:00:09]}  a4 {[%clk 0:00:25]} 35. Ra7 {[%clk 0:00:05]}  a3 {[%clk 0:00:25]} 36. g4 {[%clk 0:00:06]}  h4 {[%clk 0:00:22]} 37. f5 {[%clk 0:00:05]}  Kh6 {[%clk 0:00:22]} 38. Ra6+ {[%clk 0:00:02]}  Kg5 {[%clk 0:00:22]} 39. Rg6+ {[%clk 0:00:02]}  Kf4 {[%clk 0:00:22]} 40. Rxg7 {[%clk 0:00:03]}  Rb2+ {[%clk 0:00:22]} 41. Kg1 {[%clk 0:00:04]}  a2 {[%clk 0:00:23]} 42. Ra7 {[%clk 0:00:04]}  Rb1+ {[%clk 0:00:23]} 43. Kf2 {[%clk 0:00:04]}  a1=Q {[%clk 0:00:24]} 44. Rxa1 {[%clk 0:00:04]}  Rxa1 {[%clk 0:00:24]} 45. f6 {[%clk 0:00:05]}  Kg5 {[%clk 0:00:24]} 0-1


[Site "https://www.chess.com"]

[Event "Titled Tuesday Blitz April 12 Early 2022"]
[White "Mikhalsky, Vladimir"]
[Black "Lauridsen, Jesper Morch"]
[WhiteFideId "14144352"]
[BlackFideId "1401890"]
[WhiteElo "2301"]
[BlackElo "2311"]
[Result "0-1"]
[Round "03"]
[TimeControl "180+1"]
[Date "2022.04.13"]
[WhiteClock "0:00:12"]
[BlackClock "0:00:11"]

1. e4 {[%clk 0:03:00]}  c5 {[%clk 0:02:52]} 2. Nf3 {[%clk 0:03:00]}  d6 {[%clk 0:02:50]} 3. Bb5+ {[%clk 0:02:59]}  Bd7 {[%clk 0:02:49]} 4. Bxd7+ {[%clk 0:02:58]}  Qxd7 {[%clk 0:02:49]} 5. c4 {[%clk 0:02:58]}  Nc6 {[%clk 0:02:48]} 6. d4 {[%clk 0:02:57]}  cxd4 {[%clk 0:02:49]} 7. Nxd4 {[%clk 0:02:57]}  g6 {[%clk 0:02:48]} 8. Nc3 {[%clk 0:02:57]}  Bg7 {[%clk 0:02:48]} 9. Be3 {[%clk 0:02:57]}  Nf6 {[%clk 0:02:48]} 10. f3 {[%clk 0:02:57]}  O-O {[%clk 0:02:48]} 11. O-O {[%clk 0:02:57]}  Rfc8 {[%clk 0:02:47]} 12. b3 {[%clk 0:02:56]}  a6 {[%clk 0:02:30]} 13. Na4 {[%clk 0:02:55]}  Qd8 {[%clk 0:02:13]} 14. Rc1 {[%clk 0:02:36]}  b5 {[%clk 0:02:08]} 15. cxb5 {[%clk 0:02:11]}  Nxd4 {[%clk 0:02:06]} 16. Rxc8 {[%clk 0:01:57]}  Nxf3+ {[%clk 0:02:01]} 17. gxf3 {[%clk 0:01:46]}  Rxc8 {[%clk 0:01:33]} 18. bxa6 {[%clk 0:01:45]}  Nd7 {[%clk 0:01:24]} 19. a7 {[%clk 0:01:43]}  Qa5 {[%clk 0:01:20]} 20. Qd5 {[%clk 0:01:32]}  Nc5 {[%clk 0:01:14]} 21. Bxc5 {[%clk 0:01:18]}  dxc5 {[%clk 0:01:13]} 22. Qb7 {[%clk 0:01:17]}  Qd8 {[%clk 0:00:59]} 23. Qxc8 {[%clk 0:01:06]}  Bd4+ {[%clk 0:00:55]} 24. Kg2 {[%clk 0:01:00]}  Qxc8 {[%clk 0:00:53]} 25. Nb6 {[%clk 0:01:00]}  Qe6 {[%clk 0:00:30]} 26. a8=Q+ {[%clk 0:00:58]}  Kg7 {[%clk 0:00:31]} 27. Nd5 {[%clk 0:00:53]}  Qe5 {[%clk 0:00:31]} 28. Qa6 {[%clk 0:00:23]}  e6 {[%clk 0:00:31]} 29. Nb6 {[%clk 0:00:22]}  Qh5 {[%clk 0:00:25]} 30. Qe2 {[%clk 0:00:20]}  Be5 {[%clk 0:00:26]} 31. h3 {[%clk 0:00:17]}  Qg5+ {[%clk 0:00:25]} 32. Kh1 {[%clk 0:00:18]}  Bd4 {[%clk 0:00:22]} 33. Qg2 {[%clk 0:00:17]}  Qf4 {[%clk 0:00:20]} 34. Nc4 {[%clk 0:00:18]}  h5 {[%clk 0:00:19]} 35. a4 {[%clk 0:00:18]}  h4 {[%clk 0:00:19]} 36. a5 {[%clk 0:00:18]}  Qb8 {[%clk 0:00:16]} 37. Qc2 {[%clk 0:00:16]}  Qg3 {[%clk 0:00:15]} 38. Qg2 {[%clk 0:00:16]}  Qb8 {[%clk 0:00:15]} 39. Rb1 {[%clk 0:00:16]}  Kf6 {[%clk 0:00:13]} 40. e5+ {[%clk 0:00:16]}  Kg7 {[%clk 0:00:13]} 41. f4 {[%clk 0:00:17]}  Qa7 {[%clk 0:00:13]} 42. Qe4 {[%clk 0:00:16]}  Qa6 {[%clk 0:00:12]} 43. Qd3 {[%clk 0:00:15]}  Qc6+ {[%clk 0:00:11]} 44. Kh2 {[%clk 0:00:15]}  Qd5 {[%clk 0:00:12]} 45. Rg1 {[%clk 0:00:14]}  Bxg1+ {[%clk 0:00:11]} 46. Kxg1 {[%clk 0:00:13]}  Qxd3 {[%clk 0:00:11]} 47. Kg2 {[%clk 0:00:12]}  Qxb3 {[%clk 0:00:11]} 0-1


[Site "https://www.chess.com"]

[Event "Titled Tuesday Blitz April 12 Early 2022"]
[White "Mohammadian, Mohammad"]
[Black "Hnydiuk, Aleksander"]
[WhiteFideId "12566055"]
[BlackFideId "1109057"]
[WhiteElo "1544"]
[BlackElo "2374"]
[Result "0-1"]
[Round "03"]
[TimeControl "180+1"]
[Date "2022.04.13"]
[WhiteClock "0:00:06"]
[BlackClock "0:00:51"]

1. e4 {[%clk 0:03:00]}  Nf6 {[%clk 0:02:59]} 2. e5 {[%clk 0:02:57]}  Nd5 {[%clk 0:02:59]} 3. Nf3 {[%clk 0:02:57]}  d6 {[%clk 0:02:58]} 4. d4 {[%clk 0:02:56]}  dxe5 {[%clk 0:02:59]} 5. Nxe5 {[%clk 0:02:56]}  c6 {[%clk 0:02:58]} 6. c3 {[%clk 0:02:55]}  Nd7 {[%clk 0:02:58]} 7. Nxd7 {[%clk 0:02:54]}  Bxd7 {[%clk 0:02:58]} 8. Be2 {[%clk 0:02:53]}  Bf5 {[%clk 0:02:57]} 9. O-O {[%clk 0:02:52]}  e6 {[%clk 0:02:57]} 10. Nd2 {[%clk 0:02:52]}  Bd6 {[%clk 0:02:48]} 11. Nf3 {[%clk 0:02:52]}  O-O {[%clk 0:02:46]} 12. Bg5 {[%clk 0:02:49]}  Qc7 {[%clk 0:02:43]} 13. Bh4 {[%clk 0:02:48]}  Nf4 {[%clk 0:02:34]} 14. Bg3 {[%clk 0:02:45]}  Rfd8 {[%clk 0:02:28]} 15. Bc4 {[%clk 0:02:37]}  c5 {[%clk 0:02:25]} 16. Qb3 {[%clk 0:02:36]}  Rab8 {[%clk 0:02:06]} 17. dxc5 {[%clk 0:02:36]}  Qxc5 {[%clk 0:02:01]} 18. Qb5 {[%clk 0:02:27]}  Qxb5 {[%clk 0:01:54]} 19. Bxb5 {[%clk 0:02:27]}  a6 {[%clk 0:01:55]} 20. Bc4 {[%clk 0:02:26]}  b5 {[%clk 0:01:54]} 21. Bb3 {[%clk 0:02:26]}  Ne2+ {[%clk 0:01:50]} 22. Kh1 {[%clk 0:02:23]}  Nxg3+ {[%clk 0:01:51]} 23. hxg3 {[%clk 0:02:23]}  Bc5 {[%clk 0:01:46]} 24. Rad1 {[%clk 0:02:22]}  Bd3 {[%clk 0:01:35]} 25. Rfe1 {[%clk 0:02:00]}  Bxf2 {[%clk 0:01:34]} 26. Re5 {[%clk 0:01:55]}  Bxg3 {[%clk 0:01:32]} 27. Re3 {[%clk 0:01:52]}  Bc4 {[%clk 0:01:19]} 28. Rxd8+ {[%clk 0:01:50]}  Rxd8 {[%clk 0:01:20]} 29. Nd4 {[%clk 0:01:43]}  Bf2 {[%clk 0:01:19]} 30. Re4 {[%clk 0:01:40]}  Bxd4 {[%clk 0:01:18]} 31. cxd4 {[%clk 0:01:38]}  Bxb3 {[%clk 0:01:18]} 32. axb3 {[%clk 0:01:38]}  Kf8 {[%clk 0:01:16]} 33. Kg1 {[%clk 0:01:38]}  Ke7 {[%clk 0:01:17]} 34. Kf2 {[%clk 0:01:38]}  Kd6 {[%clk 0:01:16]} 35. Ke3 {[%clk 0:01:37]}  Rc8 {[%clk 0:01:13]} 36. Kd3 {[%clk 0:01:36]}  Rc1 {[%clk 0:01:12]} 37. g4 {[%clk 0:01:35]}  f6 {[%clk 0:01:07]} 38. Kd2 {[%clk 0:01:33]}  Rg1 {[%clk 0:01:06]} 39. Kc3 {[%clk 0:01:32]}  Kd5 {[%clk 0:01:05]} 40. Rf4 {[%clk 0:01:30]}  a5 {[%clk 0:01:04]} 41. b4 {[%clk 0:01:29]}  Rg3+ {[%clk 0:01:03]} 42. Kc2 {[%clk 0:01:27]}  axb4 {[%clk 0:01:03]} 43. b3 {[%clk 0:01:27]}  h6 {[%clk 0:00:59]} 44. Kb2 {[%clk 0:01:24]}  Rd3 {[%clk 0:00:59]} 45. Kc2 {[%clk 0:01:16]}  Rxd4 {[%clk 0:00:58]} 46. Rxd4+ {[%clk 0:01:15]}  Kxd4 {[%clk 0:00:58]} 47. Kd2 {[%clk 0:01:15]}  e5 {[%clk 0:00:58]} 48. Kc2 {[%clk 0:01:13]}  Ke3 {[%clk 0:00:55]} 49. Kd1 {[%clk 0:01:10]}  Kf2 {[%clk 0:00:55]} 50. Kd2 {[%clk 0:01:10]}  e4 {[%clk 0:00:55]} 51. Kc2 {[%clk 0:01:09]}  e3 {[%clk 0:00:56]} 52. Kd3 {[%clk 0:01:09]}  e2 {[%clk 0:00:56]} 53. Kd4 {[%clk 0:01:10]}  e1=Q {[%clk 0:00:56]} 54. Kc5 {[%clk 0:01:10]}  Qc3+ {[%clk 0:00:55]} 55. Kxb5 {[%clk 0:01:10]}  Qxb3 {[%clk 0:00:56]} 56. g5 {[%clk 0:01:10]}  hxg5 {[%clk 0:00:53]} 57. Kc6 {[%clk 0:00:50]}  g4 {[%clk 0:00:53]} 58. Kd6 {[%clk 0:00:50]}  g3 {[%clk 0:00:53]} 59. Ke7 {[%clk 0:00:50]}  g2 {[%clk 0:00:53]} 60. Kf8 {[%clk 0:00:50]}  g1=Q {[%clk 0:00:53]} 61. Ke7 {[%clk 0:00:47]}  f5 {[%clk 0:00:52]} 62. Kf8 {[%clk 0:00:43]}  f4 {[%clk 0:00:52]} 63. Ke8 {[%clk 0:00:06]}  g5 {[%clk 0:00:51]} 0-1


[Site "https://www.chess.com"]

[Event "Titled Tuesday Blitz April 12 Early 2022"]
[White "Murzin, Volodar"]
[Black "Plotnikov, Pavel"]
[WhiteFideId "44155573"]
[BlackFideId "4170342"]
[WhiteElo "2585"]
[BlackElo "2298"]
[Result "0-1"]
[Round "03"]
[TimeControl "180+1"]
[Date "2022.04.13"]
[WhiteClock "0:00:01"]
[BlackClock "0:00:09"]

1. e4 {[%clk 0:02:50]}  e5 {[%clk 0:02:59]} 2. Nf3 {[%clk 0:02:50]}  Nc6 {[%clk 0:02:59]} 3. Bb5 {[%clk 0:02:50]}  a6 {[%clk 0:02:59]} 4. Ba4 {[%clk 0:02:50]}  Nf6 {[%clk 0:02:59]} 5. O-O {[%clk 0:02:48]}  Nxe4 {[%clk 0:02:59]} 6. d4 {[%clk 0:02:48]}  b5 {[%clk 0:02:59]} 7. Bb3 {[%clk 0:02:48]}  d5 {[%clk 0:02:59]} 8. dxe5 {[%clk 0:02:48]}  Be6 {[%clk 0:03:00]} 9. Nbd2 {[%clk 0:02:45]}  Bc5 {[%clk 0:03:00]} 10. Nxe4 {[%clk 0:01:47]}  dxe4 {[%clk 0:03:01]} 11. Bxe6 {[%clk 0:01:46]}  fxe6 {[%clk 0:03:00]} 12. Ng5 {[%clk 0:01:46]}  e3 {[%clk 0:02:01]} 13. Bxe3 {[%clk 0:00:25]}  Bxe3 {[%clk 0:01:35]} 14. Qxd8+ {[%clk 0:00:24]}  Nxd8 {[%clk 0:01:36]} 15. fxe3 {[%clk 0:00:24]}  h6 {[%clk 0:01:37]} 16. Nh3 {[%clk 0:00:18]}  Nc6 {[%clk 0:01:37]} 17. Nf4 {[%clk 0:00:19]}  O-O-O {[%clk 0:01:26]} 18. Nxe6 {[%clk 0:00:17]}  Rde8 {[%clk 0:01:26]} 19. Nxg7 {[%clk 0:00:16]}  Rxe5 {[%clk 0:01:26]} 20. Nf5 {[%clk 0:00:17]}  Kb7 {[%clk 0:01:20]} 21. Rf4 {[%clk 0:00:16]}  Kb6 {[%clk 0:01:17]} 22. Raf1 {[%clk 0:00:16]}  a5 {[%clk 0:01:10]} 23. c3 {[%clk 0:00:16]}  Rd8 {[%clk 0:01:05]} 24. Nxh6 {[%clk 0:00:14]}  Rxe3 {[%clk 0:01:04]} 25. R4f2 {[%clk 0:00:14]}  Red3 {[%clk 0:01:01]} 26. Ng4 {[%clk 0:00:13]}  Rg8 {[%clk 0:00:55]} 27. h3 {[%clk 0:00:11]}  b4 {[%clk 0:00:53]} 28. cxb4 {[%clk 0:00:11]}  Nxb4 {[%clk 0:00:53]} 29. b3 {[%clk 0:00:11]}  Rc3 {[%clk 0:00:51]} 30. Kh2 {[%clk 0:00:11]}  c6 {[%clk 0:00:48]} 31. Ne5 {[%clk 0:00:10]}  Re8 {[%clk 0:00:45]} 32. Nc4+ {[%clk 0:00:09]}  Ka6 {[%clk 0:00:42]} 33. Rd2 {[%clk 0:00:08]}  Nd5 {[%clk 0:00:40]} 34. Nd6 {[%clk 0:00:04]}  Rh8 {[%clk 0:00:37]} 35. Nf7 {[%clk 0:00:04]}  Rh5 {[%clk 0:00:35]} 36. Rff2 {[%clk 0:00:04]}  Ne3 {[%clk 0:00:33]} 37. Rf3 {[%clk 0:00:01]}  Rh7 {[%clk 0:00:20]} 38. Nd6 {[%clk 0:00:01]}  Ng4+ {[%clk 0:00:19]} 39. Kg3 {[%clk 0:00:01]}  Rxf3+ {[%clk 0:00:19]} 40. Kxf3 {[%clk 0:00:02]}  Ne5+ {[%clk 0:00:20]} 41. Kg3 {[%clk 0:00:03]}  Rd7 {[%clk 0:00:20]} 42. Kh2 {[%clk 0:00:03]}  Rg7 {[%clk 0:00:16]} 43. Ne4 {[%clk 0:00:03]}  Kb5 {[%clk 0:00:16]} 44. Re2 {[%clk 0:00:04]}  Nd3 {[%clk 0:00:15]} 45. Nc3+ {[%clk 0:00:02]}  Kb4 {[%clk 0:00:15]} 46. Na4 {[%clk 0:00:03]}  Nc1 {[%clk 0:00:15]} 47. Rc2 {[%clk 0:00:03]}  Nd3 {[%clk 0:00:14]} 48. Rxc6 {[%clk 0:00:03]}  Ka3 {[%clk 0:00:15]} 49. Ra6 {[%clk 0:00:02]}  Rg5 {[%clk 0:00:15]} 50. Nb6 {[%clk 0:00:02]}  Kxa2 {[%clk 0:00:12]} 51. Nc4 {[%clk 0:00:02]}  Kxb3 {[%clk 0:00:10]} 52. Nxa5+ {[%clk 0:00:01]}  Kc3 {[%clk 0:00:10]} 53. Nb7 {[%clk 0:00:02]}  Nb4 {[%clk 0:00:10]} 54. Rd6 {[%clk 0:00:02]}  Rb5 {[%clk 0:00:09]} 55. Nd8 {[%clk 0:00:02]}  Nd5 {[%clk 0:00:09]} 56. Ne6 {[%clk 0:00:02]}  Ne3 {[%clk 0:00:10]} 57. Nf4 {[%clk 0:00:02]}  Kc4 {[%clk 0:00:10]} 58. Re6 {[%clk 0:00:02]}  Kd4 {[%clk 0:00:09]} 59. Re8 {[%clk 0:00:02]}  Rb2 {[%clk 0:00:09]} 60. Rg8 {[%clk 0:00:01]}  Ke4 {[%clk 0:00:09]} 0-1


[Site "https://www.chess.com"]

[Event "Titled Tuesday Blitz April 12 Early 2022"]
[White "Narayanan.S.L"]
[Black "Meshkovs, Nikita"]
[WhiteFideId "5058422"]
[BlackFideId "11602740"]
[WhiteElo "2494"]
[BlackElo "2506"]
[Result "1/2-1/2"]
[Round "03"]
[TimeControl "180+1"]
[Date "2022.04.12"]
[WhiteClock "0:00:22"]
[BlackClock "0:00:06"]

1. Nf3 {[%clk 0:02:59]}  d5 {[%clk 0:02:09]} 2. g3 {[%clk 0:02:10]}  Nd7 {[%clk 0:02:08]} 3. d4 {[%clk 0:02:09]}  Nb6 {[%clk 0:02:08]} 4. Bg2 {[%clk 0:02:09]}  Bf5 {[%clk 0:02:07]} 5. O-O {[%clk 0:02:09]}  e6 {[%clk 0:02:06]} 6. Bg5 {[%clk 0:02:09]}  Be7 {[%clk 0:02:02]} 7. Bxe7 {[%clk 0:02:09]}  Nxe7 {[%clk 0:02:01]} 8. Nbd2 {[%clk 0:02:09]}  O-O {[%clk 0:02:00]} 9. Rc1 {[%clk 0:02:09]}  Na4 {[%clk 0:01:37]} 10. c3 {[%clk 0:02:08]}  b5 {[%clk 0:01:08]} 11. b3 {[%clk 0:02:05]}  Nb6 {[%clk 0:01:08]} 12. Ne5 {[%clk 0:02:03]}  Rc8 {[%clk 0:01:02]} 13. e4 {[%clk 0:01:59]}  dxe4 {[%clk 0:00:59]} 14. Nxe4 {[%clk 0:02:00]}  Bxe4 {[%clk 0:00:52]} 15. Bxe4 {[%clk 0:02:00]}  c5 {[%clk 0:00:53]} 16. dxc5 {[%clk 0:01:36]}  Rxc5 {[%clk 0:00:48]} 17. Nd3 {[%clk 0:01:35]}  Rc7 {[%clk 0:00:42]} 18. Nf4 {[%clk 0:01:16]}  Qxd1 {[%clk 0:00:38]} 19. Rfxd1 {[%clk 0:01:16]}  Rfc8 {[%clk 0:00:38]} 20. Rd6 {[%clk 0:01:09]}  g6 {[%clk 0:00:33]} 21. Kg2 {[%clk 0:01:04]}  Kf8 {[%clk 0:00:29]} 22. Bd3 {[%clk 0:01:02]}  Ned5 {[%clk 0:00:18]} 23. Nxd5 {[%clk 0:01:01]}  Nxd5 {[%clk 0:00:18]} 24. Bxb5 {[%clk 0:01:01]}  Nxc3 {[%clk 0:00:14]} 25. Ba6 {[%clk 0:01:01]}  Ne4 {[%clk 0:00:08]} 26. Rxc7 {[%clk 0:00:54]}  Rxc7 {[%clk 0:00:08]} 27. Rd4 {[%clk 0:00:54]}  Nc5 {[%clk 0:00:06]} 28. Bc4 {[%clk 0:00:51]}  Ke7 {[%clk 0:00:06]} 29. Kf3 {[%clk 0:00:49]}  g5 {[%clk 0:00:04]} 30. Ke3 {[%clk 0:00:49]}  h6 {[%clk 0:00:05]} 31. a4 {[%clk 0:00:44]}  a5 {[%clk 0:00:04]} 32. f4 {[%clk 0:00:40]}  Rb7 {[%clk 0:00:04]} 33. fxg5 {[%clk 0:00:37]}  hxg5 {[%clk 0:00:05]} 34. Rg4 {[%clk 0:00:31]}  Kf6 {[%clk 0:00:05]} 35. h4 {[%clk 0:00:28]}  gxh4 {[%clk 0:00:06]} 36. gxh4 {[%clk 0:00:29]}  Nxb3 {[%clk 0:00:07]} 37. h5 {[%clk 0:00:29]}  Nc5 {[%clk 0:00:07]} 38. h6 {[%clk 0:00:29]}  Rb8 {[%clk 0:00:07]} 39. h7 {[%clk 0:00:20]}  Rh8 {[%clk 0:00:07]} 40. Kd4 {[%clk 0:00:20]}  Nxa4 {[%clk 0:00:07]} 41. Bd3 {[%clk 0:00:21]}  e5+ {[%clk 0:00:04]} 42. Ke3 {[%clk 0:00:20]}  e4 {[%clk 0:00:03]} 43. Bxe4 {[%clk 0:00:19]}  Nc5 {[%clk 0:00:02]} 44. Rg8 {[%clk 0:00:20]}  Nxe4 {[%clk 0:00:02]} 45. Rxh8 {[%clk 0:00:20]}  Ng5 {[%clk 0:00:02]} 46. Kf4 {[%clk 0:00:17]}  a4 {[%clk 0:00:03]} 47. Kg4 {[%clk 0:00:15]}  a3 {[%clk 0:00:03]} 48. Ra8 {[%clk 0:00:15]}  Nxh7 {[%clk 0:00:03]} 49. Rxa3 {[%clk 0:00:15]}  Kg6 {[%clk 0:00:03]} 50. Ra6+ {[%clk 0:00:15]}  f6 {[%clk 0:00:04]} 51. Kf4 {[%clk 0:00:16]}  Ng5 {[%clk 0:00:05]} 52. Rb6 {[%clk 0:00:16]}  Nf7 {[%clk 0:00:05]} 53. Ke4 {[%clk 0:00:16]}  Ng5+ {[%clk 0:00:05]} 54. Kd5 {[%clk 0:00:16]}  Kf5 {[%clk 0:00:05]} 55. Rb1 {[%clk 0:00:16]}  Kg6 {[%clk 0:00:05]} 56. Rf1 {[%clk 0:00:16]}  Nf7 {[%clk 0:00:04]} 57. Ke6 {[%clk 0:00:16]}  Ng5+ {[%clk 0:00:04]} 58. Ke7 {[%clk 0:00:17]}  Ne4 {[%clk 0:00:04]} 59. Rf4 {[%clk 0:00:15]}  f5 {[%clk 0:00:03]} 60. Ke6 {[%clk 0:00:15]}  Ng3 {[%clk 0:00:02]} 61. Rf3 {[%clk 0:00:15]}  Ne2 {[%clk 0:00:02]} 62. Ke5 {[%clk 0:00:13]}  f4 {[%clk 0:00:02]} 63. Rf2 {[%clk 0:00:12]}  Ng3 {[%clk 0:00:03]} 64. Rxf4 {[%clk 0:00:11]}  Kg5 {[%clk 0:00:03]} 65. Rf3 {[%clk 0:00:11]}  Kg4 {[%clk 0:00:03]} 66. Ra3 {[%clk 0:00:11]}  Ne2 {[%clk 0:00:03]} 67. Ke4 {[%clk 0:00:11]}  Ng3+ {[%clk 0:00:01]} 68. Ke5 {[%clk 0:00:11]}  Ne2 {[%clk 0:00:01]} 69. Rb3 {[%clk 0:00:11]}  Ng3 {[%clk 0:00:01]} 70. Rb8 {[%clk 0:00:11]}  Kf3 {[%clk 0:00:02]} 71. Rf8+ {[%clk 0:00:11]}  Ke3 {[%clk 0:00:02]} 72. Rf4 {[%clk 0:00:11]}  Ne2 {[%clk 0:00:02]} 73. Ra4 {[%clk 0:00:12]}  Kd3 {[%clk 0:00:02]} 74. Ra3+ {[%clk 0:00:11]}  Nc3 {[%clk 0:00:02]} 75. Ra8 {[%clk 0:00:11]}  Kc4 {[%clk 0:00:03]} 76. Rc8+ {[%clk 0:00:11]}  Kd3 {[%clk 0:00:03]} 77. Rc7 {[%clk 0:00:10]}  Ne2 {[%clk 0:00:03]} 78. Rd7+ {[%clk 0:00:10]}  Kc4 {[%clk 0:00:03]} 79. Rh7 {[%clk 0:00:11]}  Nc3 {[%clk 0:00:03]} 80. Kf4 {[%clk 0:00:11]}  Kd3 {[%clk 0:00:03]} 81. Rh3+ {[%clk 0:00:12]}  Kc4 {[%clk 0:00:04]} 82. Ke3 {[%clk 0:00:12]}  Nd5+ {[%clk 0:00:04]} 83. Kd2 {[%clk 0:00:12]}  Kd4 {[%clk 0:00:04]} 84. Rh4+ {[%clk 0:00:13]}  Ke5 {[%clk 0:00:05]} 85. Kd3 {[%clk 0:00:14]}  Nf4+ {[%clk 0:00:05]} 86. Kc4 {[%clk 0:00:14]}  Ne6 {[%clk 0:00:05]} 87. Rh1 {[%clk 0:00:14]}  Nf4 {[%clk 0:00:05]} 88. Re1+ {[%clk 0:00:14]}  Kf5 {[%clk 0:00:05]} 89. Kd4 {[%clk 0:00:15]}  Ne6+ {[%clk 0:00:05]} 90. Kd5 {[%clk 0:00:16]}  Nf4+ {[%clk 0:00:06]} 91. Kd6 {[%clk 0:00:16]}  Nd3 {[%clk 0:00:05]} 92. Re3 {[%clk 0:00:16]}  Nf4 {[%clk 0:00:05]} 93. Re5+ {[%clk 0:00:16]}  Kg4 {[%clk 0:00:05]} 94. Ra5 {[%clk 0:00:17]}  Kf3 {[%clk 0:00:05]} 95. Ke5 {[%clk 0:00:18]}  Nd3+ {[%clk 0:00:05]} 96. Kd4 {[%clk 0:00:18]}  Nf4 {[%clk 0:00:05]} 97. Rf5 {[%clk 0:00:19]}  Kg4 {[%clk 0:00:05]} 98. Ke4 {[%clk 0:00:19]}  Ne6 {[%clk 0:00:05]} 99. Rf6 {[%clk 0:00:18]}  Ng5+ {[%clk 0:00:05]} 100. Ke3 {[%clk 0:00:19]}  Nh7 {[%clk 0:00:05]} 101. Rf7 {[%clk 0:00:19]}  Ng5 {[%clk 0:00:05]} 102. Rf4+ {[%clk 0:00:19]}  Kh5 {[%clk 0:00:05]} 103. Ra4 {[%clk 0:00:19]}  Kg6 {[%clk 0:00:05]} 104. Kf4 {[%clk 0:00:20]}  Kf6 {[%clk 0:00:06]} 105. Ra6+ {[%clk 0:00:20]}  Ne6+ {[%clk 0:00:07]} 106. Ke4 {[%clk 0:00:21]}  Ke7 {[%clk 0:00:06]} 107. Ke5 {[%clk 0:00:22]}  Nc7 {[%clk 0:00:05]} 108. Ra7 {[%clk 0:00:22]}  Kd7 {[%clk 0:00:06]} 109. Rxc7+ {[%clk 0:00:22]}  Kxc7 {[%clk 0:00:06]} 1/2-1/2


[Site "https://www.chess.com"]